[Event "Titled Tuesday Blitz March 22 Early 2022"]
[White "Bryakin, Mikhail"]
[Black "Hakobyan, Aram"]
[WhiteFideId "4165314"]
[BlackFideId "13306677"]
[WhiteElo "2417"]
[BlackElo "2557"]
[Result "0-1"]
[Round "04"]
[TimeControl "180+1"]
[Date "2022.03.22"]
[WhiteClock "0:00:04"]
[BlackClock "0:00:38"]

1. e4 {[%clk 0:03:00]}  c6 {[%clk 0:03:00]} 2. Nf3 {[%clk 0:02:58]}  d5 {[%clk 0:03:01]} 3. Nc3 {[%clk 0:02:58]}  dxe4 {[%clk 0:03:01]} 4. Nxe4 {[%clk 0:02:58]}  Nf6 {[%clk 0:03:01]} 5. Qe2 {[%clk 0:02:55]}  Bg4 {[%clk 0:02:58]} 6. h3 {[%clk 0:02:54]}  Bh5 {[%clk 0:02:50]} 7. Nxf6+ {[%clk 0:02:53]}  gxf6 {[%clk 0:02:51]} 8. Qe3 {[%clk 0:02:50]}  Nd7 {[%clk 0:02:45]} 9. Bc4 {[%clk 0:02:47]}  e6 {[%clk 0:02:45]} 10. d4 {[%clk 0:02:44]}  Nb6 {[%clk 0:02:37]} 11. Be2 {[%clk 0:02:38]}  Nd5 {[%clk 0:02:37]} 12. Qb3 {[%clk 0:02:35]}  Qb6 {[%clk 0:02:37]} 13. c3 {[%clk 0:02:28]}  Rg8 {[%clk 0:02:35]} 14. Kf1 {[%clk 0:02:00]}  O-O-O {[%clk 0:02:29]} 15. Qxb6 {[%clk 0:01:59]}  axb6 {[%clk 0:02:27]} 16. Be3 {[%clk 0:01:54]}  b5 {[%clk 0:02:25]} 17. a4 {[%clk 0:01:51]}  bxa4 {[%clk 0:01:46]} 18. Rxa4 {[%clk 0:01:52]}  Bd6 {[%clk 0:01:44]} 19. Ne1 {[%clk 0:01:44]}  Bxe2+ {[%clk 0:01:41]} 20. Kxe2 {[%clk 0:01:44]}  f5 {[%clk 0:01:37]} 21. g3 {[%clk 0:01:45]}  f4 {[%clk 0:01:35]} 22. gxf4 {[%clk 0:01:45]}  Bxf4 {[%clk 0:01:35]} 23. Bxf4 {[%clk 0:01:33]}  Nxf4+ {[%clk 0:01:36]} 24. Kf3 {[%clk 0:01:34]}  Nd5 {[%clk 0:01:29]} 25. Nc2 {[%clk 0:01:33]}  Kc7 {[%clk 0:01:24]} 26. Ne3 {[%clk 0:01:32]}  Rg6 {[%clk 0:01:24]} 27. Nxd5+ {[%clk 0:01:18]}  Rxd5 {[%clk 0:01:22]} 28. Ra8 {[%clk 0:01:02]}  Rf5+ {[%clk 0:01:22]} 29. Ke2 {[%clk 0:01:00]}  Rg2 {[%clk 0:01:23]} 30. Rf1 {[%clk 0:00:59]}  Rh2 {[%clk 0:01:23]} 31. Re8 {[%clk 0:00:51]}  Rxh3 {[%clk 0:01:22]} 32. Re7+ {[%clk 0:00:51]}  Kb6 {[%clk 0:01:19]} 33. Re8 {[%clk 0:00:22]}  Rh2 {[%clk 0:01:09]} 34. Rg8 {[%clk 0:00:19]}  h5 {[%clk 0:01:09]} 35. Rg3 {[%clk 0:00:19]}  Rh4 {[%clk 0:01:06]} 36. Re3 {[%clk 0:00:17]}  Rhf4 {[%clk 0:01:05]} 37. Rh3 {[%clk 0:00:15]}  h4 {[%clk 0:01:03]} 38. Rh2 {[%clk 0:00:15]}  Kb5 {[%clk 0:00:59]} 39. b3 {[%clk 0:00:14]}  Rf3 {[%clk 0:00:58]} 40. Kd2 {[%clk 0:00:14]}  h3 {[%clk 0:00:57]} 41. Kc2 {[%clk 0:00:15]}  c5 {[%clk 0:00:56]} 42. dxc5 {[%clk 0:00:14]}  Rxc5 {[%clk 0:00:56]} 43. c4+ {[%clk 0:00:11]}  Kb4 {[%clk 0:00:57]} 44. Rfh1 {[%clk 0:00:11]}  Rc3+ {[%clk 0:00:57]} 45. Kd2 {[%clk 0:00:11]}  Rxb3 {[%clk 0:00:57]} 46. Rxh3 {[%clk 0:00:11]}  Rxh3 {[%clk 0:00:57]} 47. Rxh3 {[%clk 0:00:11]}  Rxc4 {[%clk 0:00:58]} 48. Rh7 {[%clk 0:00:10]}  Rc7 {[%clk 0:00:54]} 49. Kd3 {[%clk 0:00:11]}  b5 {[%clk 0:00:54]} 50. Rh1 {[%clk 0:00:08]}  Ka3 {[%clk 0:00:44]} 51. Ra1+ {[%clk 0:00:03]}  Kb2 {[%clk 0:00:43]} 52. Ra8 {[%clk 0:00:03]}  b4 {[%clk 0:00:44]} 53. Rb8 {[%clk 0:00:04]}  b3 {[%clk 0:00:44]} 54. f4 {[%clk 0:00:04]}  Ka2 {[%clk 0:00:41]} 55. Ra8+ {[%clk 0:00:04]}  Kb1 {[%clk 0:00:42]} 56. Rb8 {[%clk 0:00:05]}  b2 {[%clk 0:00:42]} 57. Kd2 {[%clk 0:00:05]}  Rd7+ {[%clk 0:00:40]} 58. Ke2 {[%clk 0:00:05]}  Rd5 {[%clk 0:00:39]} 59. Rb4 {[%clk 0:00:04]}  Kc2 {[%clk 0:00:38]} 0-1


[Site "https://www.chess.com"]

[Event "Titled Tuesday Blitz March 22 Early 2022"]
[White "Chincholimath, Halsagar"]
[Black "Lakshmi C"]
[WhiteFideId "5022487"]
[BlackFideId "25035347"]
[WhiteElo "1737"]
[BlackElo "1775"]
[Result "0-1"]
[Round "04"]
[TimeControl "180+1"]
[Date "2022.03.22"]
[WhiteClock "0:00:10"]
[BlackClock "0:00:15"]

1. e4 {[%clk 0:03:00]}  c5 {[%clk 0:02:58]} 2. c3 {[%clk 0:03:00]}  Nf6 {[%clk 0:02:51]} 3. e5 {[%clk 0:02:58]}  Nd5 {[%clk 0:02:49]} 4. d4 {[%clk 0:02:58]}  cxd4 {[%clk 0:02:46]} 5. Nf3 {[%clk 0:02:54]}  Nc6 {[%clk 0:02:43]} 6. cxd4 {[%clk 0:02:47]}  e6 {[%clk 0:02:40]} 7. Nc3 {[%clk 0:02:45]}  d6 {[%clk 0:02:40]} 8. Bd3 {[%clk 0:02:42]}  dxe5 {[%clk 0:02:39]} 9. dxe5 {[%clk 0:02:41]}  Nb6 {[%clk 0:02:36]} 10. Qe2 {[%clk 0:02:35]}  Nb4 {[%clk 0:02:27]} 11. Bb1 {[%clk 0:02:29]}  Bd7 {[%clk 0:02:18]} 12. O-O {[%clk 0:02:27]}  N4d5 {[%clk 0:02:15]} 13. Ne4 {[%clk 0:02:22]}  Bc6 {[%clk 0:02:02]} 14. Rd1 {[%clk 0:02:14]}  Qc7 {[%clk 0:01:58]} 15. a3 {[%clk 0:02:04]}  O-O-O {[%clk 0:01:56]} 16. b4 {[%clk 0:02:00]}  Ba4 {[%clk 0:01:55]} 17. Re1 {[%clk 0:01:40]}  Kb8 {[%clk 0:01:50]} 18. Bd3 {[%clk 0:01:23]}  Nc3 {[%clk 0:00:57]} 19. Nxc3 {[%clk 0:01:02]}  Qxc3 {[%clk 0:00:57]} 20. Bg5 {[%clk 0:00:41]}  Rxd3 {[%clk 0:00:26]} 21. Rac1 {[%clk 0:00:40]}  Qb3 {[%clk 0:00:26]} 22. Nd2 {[%clk 0:00:33]}  Qd5 {[%clk 0:00:26]} 23. Ne4 {[%clk 0:00:25]}  h6 {[%clk 0:00:24]} 24. Be3 {[%clk 0:00:23]}  Be7 {[%clk 0:00:18]} 25. Bxb6 {[%clk 0:00:22]}  axb6 {[%clk 0:00:18]} 26. h3 {[%clk 0:00:22]}  Bb5 {[%clk 0:00:17]} 27. Qb2 {[%clk 0:00:22]}  Ba6 {[%clk 0:00:17]} 28. Nc3 {[%clk 0:00:22]}  Qd4 {[%clk 0:00:17]} 29. Nd1 {[%clk 0:00:20]}  Rd2 {[%clk 0:00:17]} 30. Qb3 {[%clk 0:00:17]}  Be2 {[%clk 0:00:15]} 31. Nc3 {[%clk 0:00:15]}  Bc4 {[%clk 0:00:15]} 32. Re4 {[%clk 0:00:10]}  Qxf2+ {[%clk 0:00:15]} 0-1


[Site "https://www.chess.com"]

[Event "Titled Tuesday Blitz March 22 Early 2022"]
[White "Demchenko, Anton"]
[Black "Coto Mederos, Michel"]
[WhiteFideId "4160258"]
[BlackFideId "3508528"]
[WhiteElo "2539"]
[BlackElo "2427"]
[Result "1-0"]
[Round "04"]
[TimeControl "180+1"]
[Date "2022.03.22"]
[WhiteClock "0:00:46"]
[BlackClock "0:00:05"]

1. e4 {[%clk 0:03:00]}  g6 {[%clk 0:02:59]} 2. d4 {[%clk 0:03:00]}  Bg7 {[%clk 0:03:00]} 3. Nf3 {[%clk 0:03:01]}  c6 {[%clk 0:02:59]} 4. Bd3 {[%clk 0:02:59]}  d5 {[%clk 0:02:56]} 5. e5 {[%clk 0:02:57]}  Bg4 {[%clk 0:02:29]} 6. Nbd2 {[%clk 0:02:56]}  f6 {[%clk 0:02:15]} 7. h3 {[%clk 0:02:55]}  Bxf3 {[%clk 0:02:15]} 8. Nxf3 {[%clk 0:02:56]}  Nd7 {[%clk 0:02:13]} 9. exf6 {[%clk 0:02:37]}  Ngxf6 {[%clk 0:02:14]} 10. O-O {[%clk 0:02:37]}  O-O {[%clk 0:02:11]} 11. Ng5 {[%clk 0:02:33]}  Qb6 {[%clk 0:02:03]} 12. Ne6 {[%clk 0:02:33]}  Rf7 {[%clk 0:02:03]} 13. c3 {[%clk 0:02:27]}  c5 {[%clk 0:01:42]} 14. Qe2 {[%clk 0:02:26]}  cxd4 {[%clk 0:01:31]} 15. cxd4 {[%clk 0:02:27]}  Rc8 {[%clk 0:01:22]} 16. Bg5 {[%clk 0:02:12]}  Nf8 {[%clk 0:01:16]} 17. Nxg7 {[%clk 0:02:05]}  Kxg7 {[%clk 0:01:16]} 18. Rad1 {[%clk 0:01:58]}  Ne6 {[%clk 0:01:09]} 19. Be3 {[%clk 0:01:52]}  Nh5 {[%clk 0:01:07]} 20. g3 {[%clk 0:01:47]}  Nxd4 {[%clk 0:00:37]} 21. Bxd4+ {[%clk 0:01:02]}  Qxd4 {[%clk 0:00:38]} 22. Bxg6 {[%clk 0:01:03]}  Nxg3 {[%clk 0:00:38]} 23. Qe6 {[%clk 0:01:03]}  Rxf2 {[%clk 0:00:09]} 24. Rxd4 {[%clk 0:00:50]}  Rxf1+ {[%clk 0:00:07]} 25. Kg2 {[%clk 0:00:50]}  hxg6 {[%clk 0:00:07]} 26. Qxc8 {[%clk 0:00:48]}  Nf5 {[%clk 0:00:05]} 27. Kxf1 {[%clk 0:00:46]} 1-0


[Site "https://www.chess.com"]

[Event "Titled Tuesday Blitz March 22 Early 2022"]
[White "Dinu, Dumitru-Daniel"]
[Black "Olsen, Filip Boe"]
[WhiteFideId "1208403"]
[BlackFideId "1440640"]
[WhiteElo "2240"]
[BlackElo "2188"]
[Result "0-1"]
[Round "04"]
[TimeControl "180+1"]
[Date "2022.03.22"]
[WhiteClock "0:00:02"]
[BlackClock "0:00:12"]

1. e4 {[%clk 0:03:00]}  c6 {[%clk 0:02:57]} 2. Nc3 {[%clk 0:03:00]}  d5 {[%clk 0:02:57]} 3. Nf3 {[%clk 0:03:00]}  Nf6 {[%clk 0:02:55]} 4. e5 {[%clk 0:02:57]}  Ne4 {[%clk 0:02:55]} 5. Ne2 {[%clk 0:02:52]}  Qb6 {[%clk 0:02:55]} 6. d4 {[%clk 0:02:50]}  e6 {[%clk 0:02:54]} 7. Ng3 {[%clk 0:02:41]}  c5 {[%clk 0:02:53]} 8. Bd3 {[%clk 0:02:20]}  Nxg3 {[%clk 0:02:53]} 9. hxg3 {[%clk 0:02:18]}  h6 {[%clk 0:02:45]} 10. c3 {[%clk 0:02:15]}  Nc6 {[%clk 0:02:44]} 11. O-O {[%clk 0:02:08]}  Bd7 {[%clk 0:02:39]} 12. Be3 {[%clk 0:02:04]}  Be7 {[%clk 0:02:34]} 13. Rb1 {[%clk 0:02:00]}  O-O-O {[%clk 0:02:21]} 14. dxc5 {[%clk 0:01:54]}  Bxc5 {[%clk 0:02:21]} 15. Bxc5 {[%clk 0:01:53]}  Qxc5 {[%clk 0:02:22]} 16. b4 {[%clk 0:01:52]}  Qb6 {[%clk 0:02:15]} 17. b5 {[%clk 0:01:47]}  Na5 {[%clk 0:02:11]} 18. Qe2 {[%clk 0:01:35]}  Kb8 {[%clk 0:02:07]} 19. c4 {[%clk 0:01:26]}  dxc4 {[%clk 0:02:03]} 20. Bxc4 {[%clk 0:01:25]}  Rc8 {[%clk 0:02:03]} 21. Rfc1 {[%clk 0:01:20]}  Rc5 {[%clk 0:02:01]} 22. Bd3 {[%clk 0:01:13]}  Rhc8 {[%clk 0:01:57]} 23. Rxc5 {[%clk 0:01:11]}  Rxc5 {[%clk 0:01:49]} 24. a4 {[%clk 0:01:07]}  Qc7 {[%clk 0:01:47]} 25. Qe4 {[%clk 0:01:04]}  Nc4 {[%clk 0:01:40]} 26. Bxc4 {[%clk 0:00:38]}  Rxc4 {[%clk 0:01:41]} 27. Qh7 {[%clk 0:00:38]}  Rxa4 {[%clk 0:01:06]} 28. Qxg7 {[%clk 0:00:37]}  Ra5 {[%clk 0:00:55]} 29. Qxf7 {[%clk 0:00:28]}  Rxb5 {[%clk 0:00:55]} 30. Qf8+ {[%clk 0:00:23]}  Qc8 {[%clk 0:00:51]} 31. Qd6+ {[%clk 0:00:21]}  Qc7 {[%clk 0:00:48]} 32. Qf8+ {[%clk 0:00:21]}  Qc8 {[%clk 0:00:48]} 33. Qd6+ {[%clk 0:00:20]}  Ka8 {[%clk 0:00:48]} 34. Rd1 {[%clk 0:00:16]}  Be8 {[%clk 0:00:33]} 35. Qe7 {[%clk 0:00:15]}  Rd5 {[%clk 0:00:31]} 36. Rxd5 {[%clk 0:00:13]}  exd5 {[%clk 0:00:32]} 37. Nd4 {[%clk 0:00:12]}  a5 {[%clk 0:00:25]} 38. e6 {[%clk 0:00:12]}  a4 {[%clk 0:00:24]} 39. Qd6 {[%clk 0:00:12]}  Qc4 {[%clk 0:00:13]} 40. Qd8+ {[%clk 0:00:12]}  Ka7 {[%clk 0:00:14]} 41. Qa5+ {[%clk 0:00:08]}  Kb8 {[%clk 0:00:14]} 42. Qd8+ {[%clk 0:00:06]}  Ka7 {[%clk 0:00:14]} 43. Qa5+ {[%clk 0:00:07]}  Kb8 {[%clk 0:00:15]} 44. Qd8+ {[%clk 0:00:06]}  Qc8 {[%clk 0:00:16]} 45. Qd6+ {[%clk 0:00:06]}  Qc7 {[%clk 0:00:15]} 46. Qb4 {[%clk 0:00:06]}  Qc1+ {[%clk 0:00:13]} 47. Kh2 {[%clk 0:00:06]}  a3 {[%clk 0:00:13]} 48. Qd6+ {[%clk 0:00:06]}  Ka7 {[%clk 0:00:13]} 49. e7 {[%clk 0:00:04]}  a2 {[%clk 0:00:13]} 50. Qd8 {[%clk 0:00:04]}  a1=Q {[%clk 0:00:13]} 51. Nb5+ {[%clk 0:00:03]}  Bxb5 {[%clk 0:00:12]} 52. e8=Q {[%clk 0:00:03]}  Bxe8 {[%clk 0:00:12]} 53. Qxd5 {[%clk 0:00:02]}  Qh1# {[%clk 0:00:12]} 0-1


[Site "https://www.chess.com"]

[Event "Titled Tuesday Blitz March 22 Early 2022"]
[White "Dolzhykova, Kateryna"]
[Black "Tasev, Dejan"]
[WhiteFideId "14113414"]
[BlackFideId "936618"]
[WhiteElo "2184"]
[BlackElo "2253"]
[Result "0-1"]
[Round "04"]
[TimeControl "180+1"]
[Date "2022.03.22"]
[WhiteClock "0:00:01"]
[BlackClock "0:00:12"]

1. e4 {[%clk 0:03:00]}  e5 {[%clk 0:03:00]} 2. Nf3 {[%clk 0:03:00]}  Nf6 {[%clk 0:02:59]} 3. Nc3 {[%clk 0:02:59]}  Nc6 {[%clk 0:02:59]} 4. a3 {[%clk 0:02:57]}  Be7 {[%clk 0:02:54]} 5. d4 {[%clk 0:02:54]}  exd4 {[%clk 0:02:54]} 6. Nxd4 {[%clk 0:02:55]}  Bc5 {[%clk 0:02:53]} 7. Be3 {[%clk 0:02:54]}  Bb6 {[%clk 0:02:53]} 8. Bc4 {[%clk 0:02:48]}  d6 {[%clk 0:02:50]} 9. O-O {[%clk 0:02:45]}  h6 {[%clk 0:02:48]} 10. f3 {[%clk 0:02:39]}  O-O {[%clk 0:02:47]} 11. Qd2 {[%clk 0:02:39]}  Re8 {[%clk 0:02:45]} 12. Rae1 {[%clk 0:02:35]}  Nxd4 {[%clk 0:02:32]} 13. Bxd4 {[%clk 0:02:34]}  Be6 {[%clk 0:02:32]} 14. Bxe6 {[%clk 0:02:28]}  Rxe6 {[%clk 0:02:31]} 15. Ne2 {[%clk 0:02:28]}  Re8 {[%clk 0:02:16]} 16. Kh1 {[%clk 0:02:25]}  Nd7 {[%clk 0:02:09]} 17. Nf4 {[%clk 0:02:13]}  Qg5 {[%clk 0:02:05]} 18. Bxb6 {[%clk 0:02:04]}  axb6 {[%clk 0:02:01]} 19. Rd1 {[%clk 0:02:03]}  Nf6 {[%clk 0:01:55]} 20. Nd5 {[%clk 0:02:00]}  Nxd5 {[%clk 0:01:51]} 21. Qxg5 {[%clk 0:01:58]}  hxg5 {[%clk 0:01:51]} 22. Rxd5 {[%clk 0:01:58]}  f6 {[%clk 0:01:50]} 23. Rfd1 {[%clk 0:01:57]}  Kf7 {[%clk 0:01:50]} 24. Kg1 {[%clk 0:01:57]}  Ke7 {[%clk 0:01:43]} 25. Kf2 {[%clk 0:01:57]}  Ke6 {[%clk 0:01:41]} 26. R1d3 {[%clk 0:01:55]}  Red8 {[%clk 0:01:35]} 27. Rc3 {[%clk 0:01:53]}  c6 {[%clk 0:01:35]} 28. Rd4 {[%clk 0:01:50]}  b5 {[%clk 0:01:32]} 29. h3 {[%clk 0:01:49]}  Rd7 {[%clk 0:01:22]} 30. g3 {[%clk 0:01:42]}  Rh8 {[%clk 0:01:21]} 31. Kg2 {[%clk 0:01:41]}  Rdd8 {[%clk 0:01:13]} 32. Rcd3 {[%clk 0:01:40]}  Rd7 {[%clk 0:01:11]} 33. f4 {[%clk 0:01:21]}  gxf4 {[%clk 0:01:07]} 34. gxf4 {[%clk 0:01:21]}  Rh5 {[%clk 0:01:02]} 35. Kg3 {[%clk 0:01:18]}  Rc5 {[%clk 0:00:55]} 36. f5+ {[%clk 0:01:01]}  Ke5 {[%clk 0:00:44]} 37. Kf3 {[%clk 0:01:01]}  d5 {[%clk 0:00:40]} 38. c3 {[%clk 0:00:47]}  Rc4 {[%clk 0:00:35]} 39. Ke3 {[%clk 0:00:21]}  Rxd4 {[%clk 0:00:33]} 40. Rxd4 {[%clk 0:00:19]}  c5 {[%clk 0:00:24]} 41. Rd1 {[%clk 0:00:19]}  b6 {[%clk 0:00:19]} 42. b4 {[%clk 0:00:08]}  d4+ {[%clk 0:00:17]} 43. cxd4+ {[%clk 0:00:08]}  cxd4+ {[%clk 0:00:17]} 44. Kd3 {[%clk 0:00:07]}  Rc7 {[%clk 0:00:17]} 45. Rg1 {[%clk 0:00:07]}  Rc3+ {[%clk 0:00:17]} 46. Kd2 {[%clk 0:00:08]}  Rxh3 {[%clk 0:00:17]} 47. Rxg7 {[%clk 0:00:08]}  Rxa3 {[%clk 0:00:17]} 48. Re7+ {[%clk 0:00:06]}  Kf4 {[%clk 0:00:16]} 49. Re6 {[%clk 0:00:06]}  Re3 {[%clk 0:00:09]} 50. Rxb6 {[%clk 0:00:04]}  Rxe4 {[%clk 0:00:09]} 51. Rxf6 {[%clk 0:00:04]}  Re3 {[%clk 0:00:09]} 52. Rb6 {[%clk 0:00:03]}  Rb3 {[%clk 0:00:09]} 53. Rxb5 {[%clk 0:00:03]}  Ke4 {[%clk 0:00:09]} 54. Rb8 {[%clk 0:00:03]}  Rb2+ {[%clk 0:00:10]} 55. Kc1 {[%clk 0:00:03]}  Rf2 {[%clk 0:00:10]} 56. f6 {[%clk 0:00:03]}  Rxf6 {[%clk 0:00:09]} 57. Re8+ {[%clk 0:00:02]}  Kd3 {[%clk 0:00:10]} 58. b5 {[%clk 0:00:01]}  Rb6 {[%clk 0:00:10]} 59. Kb2 {[%clk 0:00:02]}  Rxb5+ {[%clk 0:00:10]} 60. Kc1 {[%clk 0:00:03]}  Rb4 {[%clk 0:00:10]} 61. Rh8 {[%clk 0:00:03]}  Rc4+ {[%clk 0:00:11]} 62. Kd1 {[%clk 0:00:02]}  Kc3 {[%clk 0:00:11]} 63. Rh3+ {[%clk 0:00:02]}  d3 {[%clk 0:00:12]} 64. Rh8 {[%clk 0:00:01]}  Rc6 {[%clk 0:00:12]} 0-1


[Site "https://www.chess.com"]

[Event "Titled Tuesday Blitz March 22 Early 2022"]
[White "Ferreira, Vitor Hugo Vieira"]
[Black "Sarkar, Justin"]
[WhiteFideId "2119765"]
[BlackFideId "2010011"]
[WhiteElo "2165"]
[BlackElo "2038"]
[Result "0-1"]
[Round "04"]
[TimeControl "180+1"]
[Date "2022.03.22"]
[WhiteClock "0:01:13"]
[BlackClock "0:00:03"]

1. Nf3 {[%clk 0:02:55]}  d5 {[%clk 0:02:53]} 2. g3 {[%clk 0:02:55]}  Nf6 {[%clk 0:02:50]} 3. Bg2 {[%clk 0:02:56]}  Nbd7 {[%clk 0:02:49]} 4. O-O {[%clk 0:02:53]}  e5 {[%clk 0:02:44]} 5. d4 {[%clk 0:02:52]}  e4 {[%clk 0:02:30]} 6. Ne5 {[%clk 0:02:52]}  Bd6 {[%clk 0:02:25]} 7. c4 {[%clk 0:02:51]}  Nxe5 {[%clk 0:01:53]} 8. dxe5 {[%clk 0:02:51]}  Bxe5 {[%clk 0:01:53]} 9. cxd5 {[%clk 0:02:51]}  Qxd5 {[%clk 0:01:49]} 10. Qxd5 {[%clk 0:02:51]}  Nxd5 {[%clk 0:01:50]} 11. Bxe4 {[%clk 0:02:51]}  Be6 {[%clk 0:01:46]} 12. Nc3 {[%clk 0:02:45]}  Nxc3 {[%clk 0:01:41]} 13. bxc3 {[%clk 0:02:45]}  O-O-O {[%clk 0:01:33]} 14. Rb1 {[%clk 0:02:39]}  c6 {[%clk 0:01:23]} 15. Be3 {[%clk 0:02:38]}  Bxc3 {[%clk 0:01:09]} 16. Rfc1 {[%clk 0:02:35]}  Bd2 {[%clk 0:00:51]} 17. Bxd2 {[%clk 0:02:18]}  Rxd2 {[%clk 0:00:52]} 18. a4 {[%clk 0:02:13]}  Rxe2 {[%clk 0:00:46]} 19. Bf3 {[%clk 0:02:13]}  Re5 {[%clk 0:00:40]} 20. Rb2 {[%clk 0:02:04]}  Rd8 {[%clk 0:00:37]} 21. Rcb1 {[%clk 0:02:04]}  Rd7 {[%clk 0:00:31]} 22. Rb4 {[%clk 0:02:02]}  a5 {[%clk 0:00:27]} 23. Rh4 {[%clk 0:02:00]}  h6 {[%clk 0:00:24]} 24. Kg2 {[%clk 0:01:50]}  Kc7 {[%clk 0:00:23]} 25. Rf4 {[%clk 0:01:40]}  Rd2 {[%clk 0:00:20]} 26. h4 {[%clk 0:01:34]}  Rf5 {[%clk 0:00:18]} 27. Re4 {[%clk 0:01:29]}  Bd5 {[%clk 0:00:11]} 28. Re7+ {[%clk 0:01:29]}  Kd6 {[%clk 0:00:11]} 29. Bxd5 {[%clk 0:01:29]}  Rfxf2+ {[%clk 0:00:08]} 30. Kh3 {[%clk 0:01:29]}  Kxe7 {[%clk 0:00:08]} 31. Rxb7+ {[%clk 0:01:28]}  Kd6 {[%clk 0:00:08]} 32. Bxf7 {[%clk 0:01:28]}  Rh2+ {[%clk 0:00:06]} 33. Kg4 {[%clk 0:01:28]}  Rd4+ {[%clk 0:00:05]} 34. Kh5 {[%clk 0:01:28]}  Rxa4 {[%clk 0:00:05]} 35. Be8 {[%clk 0:01:22]}  Rb4 {[%clk 0:00:04]} 36. Rxg7 {[%clk 0:01:21]}  a4 {[%clk 0:00:05]} 37. Rg6+ {[%clk 0:01:21]}  Ke7 {[%clk 0:00:05]} 38. Bxc6 {[%clk 0:01:21]}  a3 {[%clk 0:00:05]} 39. Bd5 {[%clk 0:01:17]}  Ra4 {[%clk 0:00:05]} 40. Kxh6 {[%clk 0:01:15]}  Ra5 {[%clk 0:00:05]} 41. Bg8 {[%clk 0:01:15]}  a2 {[%clk 0:00:05]} 42. Bxa2 {[%clk 0:01:14]}  Raxa2 {[%clk 0:00:05]} 43. h5 {[%clk 0:01:14]}  Rag2 {[%clk 0:00:04]} 44. g4 {[%clk 0:01:15]}  Rh4 {[%clk 0:00:04]} 45. Rg8 {[%clk 0:01:11]}  Rgxg4 {[%clk 0:00:03]} 46. Ra8 {[%clk 0:01:10]}  Rf4 {[%clk 0:00:03]} 47. Ra7+ {[%clk 0:01:10]}  Kf6 {[%clk 0:00:02]} 48. Ra6+ {[%clk 0:01:10]}  Kf5 {[%clk 0:00:02]} 49. Ra5+ {[%clk 0:01:11]}  Kg4 {[%clk 0:00:02]} 50. Rg5+ {[%clk 0:01:11]}  Kf3 {[%clk 0:00:02]} 51. Ra5 {[%clk 0:01:12]}  Rhg4 {[%clk 0:00:01]} 52. Ra3+ {[%clk 0:01:11]}  Kg2 {[%clk 0:00:02]} 53. Ra2+ {[%clk 0:01:12]}  Kg3 {[%clk 0:00:02]} 54. Ra3+ {[%clk 0:01:12]}  Rf3 {[%clk 0:00:02]} 55. Ra6 {[%clk 0:01:13]}  Rf5 {[%clk 0:00:02]} 56. Ra3+ {[%clk 0:01:12]}  Kh4 {[%clk 0:00:02]} 57. Ra6 {[%clk 0:01:13]}  Rxh5# {[%clk 0:00:03]} 0-1


[Site "https://www.chess.com"]

[Event "Titled Tuesday Blitz March 22 Early 2022"]
[White "Fiol, Fabrice"]
[Black "Fawole, John Oyeyemi"]
[WhiteFideId "611670"]
[BlackFideId "8501319"]
[WhiteElo "2481"]
[BlackElo "2091"]
[Result "1-0"]
[Round "04"]
[TimeControl "180+1"]
[Date "2022.03.22"]
[WhiteClock "0:01:16"]
[BlackClock "0:01:16"]

1. e4 {[%clk 0:03:00]}  c5 {[%clk 0:02:58]} 2. Nf3 {[%clk 0:02:59]}  d6 {[%clk 0:02:58]} 3. d4 {[%clk 0:02:57]}  cxd4 {[%clk 0:02:58]} 4. Nxd4 {[%clk 0:02:56]}  Nf6 {[%clk 0:02:58]} 5. Nc3 {[%clk 0:02:55]}  e6 {[%clk 0:02:56]} 6. Be2 {[%clk 0:02:52]}  Be7 {[%clk 0:02:56]} 7. g4 {[%clk 0:02:51]}  Nc6 {[%clk 0:02:54]} 8. Be3 {[%clk 0:02:50]}  a6 {[%clk 0:02:51]} 9. g5 {[%clk 0:02:48]}  Nd7 {[%clk 0:02:50]} 10. h4 {[%clk 0:02:48]}  Qc7 {[%clk 0:02:48]} 11. Qd2 {[%clk 0:02:46]}  Nce5 {[%clk 0:02:47]} 12. f4 {[%clk 0:02:42]}  Nc4 {[%clk 0:02:46]} 13. Bxc4 {[%clk 0:02:43]}  Qxc4 {[%clk 0:02:46]} 14. O-O-O {[%clk 0:02:42]}  O-O {[%clk 0:02:43]} 15. Kb1 {[%clk 0:02:40]}  b5 {[%clk 0:02:41]} 16. h5 {[%clk 0:02:39]}  Bb7 {[%clk 0:02:38]} 17. g6 {[%clk 0:02:36]}  b4 {[%clk 0:02:33]} 18. gxh7+ {[%clk 0:02:34]}  Kxh7 {[%clk 0:02:29]} 19. Nce2 {[%clk 0:02:32]}  Bxe4 {[%clk 0:02:25]} 20. Rh2 {[%clk 0:02:27]}  Rfc8 {[%clk 0:02:16]} 21. Ng3 {[%clk 0:02:24]}  Bd5 {[%clk 0:02:15]} 22. b3 {[%clk 0:02:19]}  Qc3 {[%clk 0:02:14]} 23. Qf2 {[%clk 0:01:56]}  Nc5 {[%clk 0:02:00]} 24. Bd2 {[%clk 0:01:32]}  Ne4 {[%clk 0:01:56]} 25. Nxe4 {[%clk 0:01:28]}  Qxc2+ {[%clk 0:01:28]} 26. Nxc2 {[%clk 0:01:26]}  Bxe4 {[%clk 0:01:27]} 27. Rc1 {[%clk 0:01:25]}  a5 {[%clk 0:01:17]} 28. h6 {[%clk 0:01:20]}  g6 {[%clk 0:01:16]} 29. Qd4 {[%clk 0:01:16]} 1-0


[Site "https://www.chess.com"]

[Event "Titled Tuesday Blitz March 22 Early 2022"]
[White "Gabrielian, Artur"]
[Black "Terry, Renato"]
[WhiteFideId "4131002"]
[BlackFideId "3803457"]
[WhiteElo "2440"]
[BlackElo "2577"]
[Result "0-1"]
[Round "04"]
[TimeControl "180+1"]
[Date "2022.03.22"]
[WhiteClock "0:00:02"]
[BlackClock "0:00:18"]

1. e4 {[%clk 0:03:00]}  e6 {[%clk 0:02:59]} 2. d3 {[%clk 0:02:59]}  d5 {[%clk 0:03:00]} 3. Qe2 {[%clk 0:03:00]}  Be7 {[%clk 0:02:51]} 4. Nf3 {[%clk 0:03:00]}  Nf6 {[%clk 0:02:51]} 5. g3 {[%clk 0:03:00]}  c5 {[%clk 0:02:51]} 6. Bg2 {[%clk 0:03:00]}  Nc6 {[%clk 0:02:52]} 7. O-O {[%clk 0:03:00]}  O-O {[%clk 0:02:50]} 8. e5 {[%clk 0:03:01]}  Nd7 {[%clk 0:02:41]} 9. c4 {[%clk 0:03:01]}  Nb6 {[%clk 0:02:42]} 10. Nc3 {[%clk 0:03:00]}  f5 {[%clk 0:02:11]} 11. exf6 {[%clk 0:02:34]}  Bxf6 {[%clk 0:02:11]} 12. Re1 {[%clk 0:02:34]}  Bd7 {[%clk 0:02:06]} 13. Bf4 {[%clk 0:02:30]}  Nd4 {[%clk 0:01:53]} 14. Nxd4 {[%clk 0:02:29]}  Bxd4 {[%clk 0:01:23]} 15. cxd5 {[%clk 0:02:25]}  e5 {[%clk 0:00:52]} 16. Be3 {[%clk 0:02:20]}  Bf5 {[%clk 0:00:52]} 17. Rac1 {[%clk 0:02:09]}  Rc8 {[%clk 0:00:52]} 18. Bxd4 {[%clk 0:01:53]}  cxd4 {[%clk 0:00:40]} 19. Ne4 {[%clk 0:01:42]}  Rxc1 {[%clk 0:00:38]} 20. Rxc1 {[%clk 0:01:41]}  Nxd5 {[%clk 0:00:38]} 21. Nc5 {[%clk 0:01:15]}  Re8 {[%clk 0:00:38]} 22. Nxb7 {[%clk 0:01:11]}  Qd7 {[%clk 0:00:39]} 23. Nc5 {[%clk 0:01:07]}  Qd8 {[%clk 0:00:39]} 24. Ne4 {[%clk 0:01:03]}  Qb6 {[%clk 0:00:32]} 25. h4 {[%clk 0:00:56]}  h6 {[%clk 0:00:32]} 26. Qc2 {[%clk 0:00:37]}  Rc8 {[%clk 0:00:30]} 27. Qd2 {[%clk 0:00:28]}  Rb8 {[%clk 0:00:29]} 28. b3 {[%clk 0:00:27]}  Bxe4 {[%clk 0:00:28]} 29. Bxe4 {[%clk 0:00:27]}  Nc3 {[%clk 0:00:29]} 30. Bg2 {[%clk 0:00:21]}  Rf8 {[%clk 0:00:29]} 31. Re1 {[%clk 0:00:21]}  Qf6 {[%clk 0:00:29]} 32. b4 {[%clk 0:00:19]}  Kh8 {[%clk 0:00:27]} 33. a3 {[%clk 0:00:19]}  Qf5 {[%clk 0:00:27]} 34. f4 {[%clk 0:00:13]}  Qg4 {[%clk 0:00:24]} 35. Qf2 {[%clk 0:00:10]}  exf4 {[%clk 0:00:22]} 36. Qf3 {[%clk 0:00:03]}  Qxg3 {[%clk 0:00:18]} 37. Qxg3 {[%clk 0:00:02]}  fxg3 {[%clk 0:00:19]} 38. Re7 {[%clk 0:00:01]}  Rf2 {[%clk 0:00:18]} 39. h5 {[%clk 0:00:02]}  Ne2+ {[%clk 0:00:17]} 40. Kh1 {[%clk 0:00:02]}  Kg8 {[%clk 0:00:18]} 41. Bd5+ {[%clk 0:00:02]}  Kf8 {[%clk 0:00:18]} 0-1


[Site "https://www.chess.com"]